[Event "Titled Tuesday Blitz May 31 Late 2022"]
[White "Fier, Alexandr"]
[Black "Remolar Gallen, Jose"]
[WhiteFideId "2107139"]
[BlackFideId "2215187"]
[WhiteElo "2571"]
[BlackElo "2205"]
[Result "0-1"]
[Round "02"]
[TimeControl "180+1"]
[Date "2022.06.01"]
[WhiteClock "0:00:28"]
[BlackClock "0:00:13"]

1. d4 {[%clk 0:03:00]}  Nf6 {[%clk 0:02:58]} 2. Bg5 {[%clk 0:03:00]}  Ne4 {[%clk 0:02:57]} 3. Bh4 {[%clk 0:03:00]}  c5 {[%clk 0:02:57]} 4. f3 {[%clk 0:03:00]}  Qa5+ {[%clk 0:02:53]} 5. c3 {[%clk 0:03:00]}  Nf6 {[%clk 0:02:52]} 6. Nd2 {[%clk 0:02:57]}  cxd4 {[%clk 0:02:52]} 7. Nb3 {[%clk 0:02:56]}  Qb6 {[%clk 0:02:50]} 8. Qxd4 {[%clk 0:02:56]}  Nc6 {[%clk 0:02:48]} 9. Qxb6 {[%clk 0:02:56]}  axb6 {[%clk 0:02:49]} 10. e4 {[%clk 0:02:57]}  d6 {[%clk 0:02:47]} 11. Bf2 {[%clk 0:02:57]}  Be6 {[%clk 0:02:45]} 12. Nd2 {[%clk 0:02:49]}  Nd7 {[%clk 0:02:37]} 13. a3 {[%clk 0:02:42]}  g6 {[%clk 0:02:28]} 14. Nc4 {[%clk 0:02:42]}  b5 {[%clk 0:02:22]} 15. Nd2 {[%clk 0:02:42]}  b4 {[%clk 0:02:21]} 16. cxb4 {[%clk 0:02:35]}  Nxb4 {[%clk 0:02:16]} 17. Rc1 {[%clk 0:02:35]}  Nc6 {[%clk 0:02:12]} 18. Ne2 {[%clk 0:02:33]}  Bg7 {[%clk 0:02:12]} 19. Nf4 {[%clk 0:02:33]}  Bxb2 {[%clk 0:02:09]} 20. Rb1 {[%clk 0:02:33]}  Bxa3 {[%clk 0:02:06]} 21. Nxe6 {[%clk 0:02:34]}  fxe6 {[%clk 0:02:05]} 22. Rxb7 {[%clk 0:02:34]}  Bb4 {[%clk 0:01:58]} 23. Bb5 {[%clk 0:02:20]}  Nde5 {[%clk 0:01:11]} 24. Ke2 {[%clk 0:02:16]}  O-O {[%clk 0:00:58]} 25. Be3 {[%clk 0:02:11]}  Ra2 {[%clk 0:00:53]} 26. Rd1 {[%clk 0:02:05]}  Na5 {[%clk 0:00:40]} 27. Rxe7 {[%clk 0:02:00]}  Rb8 {[%clk 0:00:37]} 28. Re8+ {[%clk 0:01:52]}  Rxe8 {[%clk 0:00:36]} 29. Bxe8 {[%clk 0:01:53]}  Nac4 {[%clk 0:00:34]} 30. Bb5 {[%clk 0:01:52]}  d5 {[%clk 0:00:30]} 31. exd5 {[%clk 0:01:50]}  exd5 {[%clk 0:00:31]} 32. Bh6 {[%clk 0:01:47]}  Kf7 {[%clk 0:00:26]} 33. Bf4 {[%clk 0:01:44]}  Ke6 {[%clk 0:00:21]} 34. h4 {[%clk 0:01:20]}  h5 {[%clk 0:00:17]} 35. Bg5 {[%clk 0:01:20]}  d4 {[%clk 0:00:17]} 36. Be8 {[%clk 0:00:51]}  d3+ {[%clk 0:00:14]} 37. Ke1 {[%clk 0:00:52]}  Kd5 {[%clk 0:00:13]} 38. Bf4 {[%clk 0:00:50]}  Kd4 {[%clk 0:00:08]} 39. Bb5 {[%clk 0:00:40]}  Ne3 {[%clk 0:00:03]} 40. Bxe5+ {[%clk 0:00:32]}  Kxe5 {[%clk 0:00:03]} 41. Bxd3 {[%clk 0:00:31]}  Nxg2+ {[%clk 0:00:03]} 42. Kf2 {[%clk 0:00:32]}  Nf4 {[%clk 0:00:03]} 43. Ke3 {[%clk 0:00:32]}  Bxd2+ {[%clk 0:00:02]} 44. Rxd2 {[%clk 0:00:26]}  Rxd2 {[%clk 0:00:03]} 45. Kxd2 {[%clk 0:00:27]}  Nxd3 {[%clk 0:00:03]} 46. Kxd3 {[%clk 0:00:27]}  Kf4 {[%clk 0:00:04]} 47. Ke2 {[%clk 0:00:27]}  Kg3 {[%clk 0:00:05]} 48. Ke3 {[%clk 0:00:25]}  Kxh4 {[%clk 0:00:05]} 49. Kf4 {[%clk 0:00:26]}  g5+ {[%clk 0:00:04]} 50. Kf5 {[%clk 0:00:26]}  g4 {[%clk 0:00:04]} 51. f4 {[%clk 0:00:22]}  g3 {[%clk 0:00:04]} 52. Kg6 {[%clk 0:00:23]}  g2 {[%clk 0:00:05]} 53. f5 {[%clk 0:00:24]}  g1=Q+ {[%clk 0:00:06]} 54. Kh6 {[%clk 0:00:24]}  Qf2 {[%clk 0:00:06]} 55. Kg6 {[%clk 0:00:24]}  Kg4 {[%clk 0:00:07]} 56. f6 {[%clk 0:00:24]}  Qf5+ {[%clk 0:00:08]} 57. Kg7 {[%clk 0:00:25]}  h4 {[%clk 0:00:09]} 58. f7 {[%clk 0:00:25]}  h3 {[%clk 0:00:09]} 59. Kh6 {[%clk 0:00:24]}  Qf6+ {[%clk 0:00:09]} 60. Kh7 {[%clk 0:00:24]}  Qxf7+ {[%clk 0:00:10]} 61. Kh8 {[%clk 0:00:25]}  Qf8+ {[%clk 0:00:10]} 62. Kh7 {[%clk 0:00:26]}  Qe7+ {[%clk 0:00:10]} 63. Kg6 {[%clk 0:00:26]}  Qa3 {[%clk 0:00:11]} 64. Kh6 {[%clk 0:00:27]}  h2 {[%clk 0:00:12]} 65. Kg6 {[%clk 0:00:27]}  h1=Q {[%clk 0:00:13]} 66. Kf7 {[%clk 0:00:28]}  Qb1 {[%clk 0:00:13]} 0-1


[Site "https://www.chess.com"]

[Event "Titled Tuesday Blitz May 31 Late 2022"]
[White "Halkias, Stelios"]
[Black "Beulen, Marcel"]
[WhiteFideId "4201809"]
[BlackFideId "1001450"]
[WhiteElo "2453"]
[BlackElo "2362"]
[Result "1-0"]
[Round "02"]
[TimeControl "180+1"]
[Date "2022.06.01"]
[WhiteClock "0:00:12"]
[BlackClock "0:00:09"]

1. e4 {[%clk 0:03:00]}  d5 {[%clk 0:02:59]} 2. exd5 {[%clk 0:03:00]}  Qxd5 {[%clk 0:03:00]} 3. Nc3 {[%clk 0:03:00]}  Qa5 {[%clk 0:03:00]} 4. d4 {[%clk 0:03:00]}  Nf6 {[%clk 0:02:59]} 5. Bc4 {[%clk 0:02:58]}  Bg4 {[%clk 0:02:59]} 6. f3 {[%clk 0:02:53]}  Bf5 {[%clk 0:02:58]} 7. Ne2 {[%clk 0:02:53]}  e6 {[%clk 0:02:46]} 8. Bd2 {[%clk 0:02:52]}  c6 {[%clk 0:02:45]} 9. Ng3 {[%clk 0:02:35]}  Bg6 {[%clk 0:02:45]} 10. Nd5 {[%clk 0:02:28]}  Qd8 {[%clk 0:02:43]} 11. Nxf6+ {[%clk 0:02:28]}  gxf6 {[%clk 0:02:43]} 12. Be3 {[%clk 0:02:27]}  Nd7 {[%clk 0:02:42]} 13. O-O {[%clk 0:02:27]}  Bd6 {[%clk 0:02:37]} 14. Bb3 {[%clk 0:02:18]}  Qc7 {[%clk 0:02:36]} 15. Bf2 {[%clk 0:02:17]}  h5 {[%clk 0:02:33]} 16. Re1 {[%clk 0:02:12]}  O-O-O {[%clk 0:02:30]} 17. Qe2 {[%clk 0:02:08]}  h4 {[%clk 0:02:28]} 18. Nf1 {[%clk 0:02:08]}  h3 {[%clk 0:02:28]} 19. g3 {[%clk 0:02:07]}  Kb8 {[%clk 0:01:59]} 20. Ne3 {[%clk 0:02:06]}  Nb6 {[%clk 0:01:56]} 21. a4 {[%clk 0:02:03]}  f5 {[%clk 0:01:50]} 22. a5 {[%clk 0:02:00]}  Nd5 {[%clk 0:01:50]} 23. Nc4 {[%clk 0:02:00]}  Be7 {[%clk 0:01:39]} 24. Ne5 {[%clk 0:01:58]}  Bh5 {[%clk 0:01:34]} 25. c4 {[%clk 0:01:52]}  Nf6 {[%clk 0:01:28]} 26. Be3 {[%clk 0:01:42]}  c5 {[%clk 0:01:02]} 27. Bf4 {[%clk 0:01:31]}  Bd6 {[%clk 0:01:01]} 28. Rec1 {[%clk 0:01:30]}  Nd7 {[%clk 0:00:57]} 29. Nd3 {[%clk 0:01:21]}  cxd4 {[%clk 0:00:51]} 30. Bxd6 {[%clk 0:01:19]}  Qxd6 {[%clk 0:00:51]} 31. c5 {[%clk 0:01:20]}  Qc6 {[%clk 0:00:49]} 32. Ba4 {[%clk 0:01:04]}  Qxf3 {[%clk 0:00:48]} 33. Qxf3 {[%clk 0:01:04]}  Bxf3 {[%clk 0:00:49]} 34. Bxd7 {[%clk 0:01:04]}  Rxd7 {[%clk 0:00:44]} 35. Ne5 {[%clk 0:01:04]}  Bc6 {[%clk 0:00:44]} 36. Nxd7+ {[%clk 0:01:00]}  Bxd7 {[%clk 0:00:45]} 37. a6 {[%clk 0:01:01]}  e5 {[%clk 0:00:42]} 38. axb7 {[%clk 0:00:43]}  Bc6 {[%clk 0:00:42]} 39. b4 {[%clk 0:00:32]}  Kxb7 {[%clk 0:00:40]} 40. b5 {[%clk 0:00:25]}  Bxb5 {[%clk 0:00:40]} 41. c6+ {[%clk 0:00:25]}  Bxc6 {[%clk 0:00:40]} 42. Rab1+ {[%clk 0:00:22]}  Kc7 {[%clk 0:00:40]} 43. Rc5 {[%clk 0:00:22]}  Re8 {[%clk 0:00:39]} 44. Ra5 {[%clk 0:00:22]}  Kd6 {[%clk 0:00:33]} 45. Rxa7 {[%clk 0:00:18]}  Re7 {[%clk 0:00:28]} 46. Ra5 {[%clk 0:00:16]}  d3 {[%clk 0:00:25]} 47. Rc1 {[%clk 0:00:14]}  e4 {[%clk 0:00:18]} 48. Ra6 {[%clk 0:00:12]}  Rc7 {[%clk 0:00:18]} 49. Kf2 {[%clk 0:00:12]}  Kd5 {[%clk 0:00:16]} 50. Ke3 {[%clk 0:00:12]}  f6 {[%clk 0:00:10]} 51. Ra5+ {[%clk 0:00:12]}  Kd6 {[%clk 0:00:10]} 52. Rxf5 {[%clk 0:00:11]}  Bd7 {[%clk 0:00:09]} 53. Rxf6+ {[%clk 0:00:11]}  Ke7 {[%clk 0:00:09]} 54. Rxc7 {[%clk 0:00:11]}  Kxf6 {[%clk 0:00:09]} 55. Rxd7 {[%clk 0:00:12]} 1-0


[Site "https://www.chess.com"]

[Event "Titled Tuesday Blitz May 31 Late 2022"]
[White "Hasangatin, Ramil"]
[Black "Jobava, Baadur"]
[WhiteFideId "4122160"]
[BlackFideId "13601520"]
[WhiteElo "2399"]
[BlackElo "2617"]
[Result "0-1"]
[Round "02"]
[TimeControl "180+1"]
[Date "2022.05.31"]
[WhiteClock "0:00:01"]
[BlackClock "0:00:04"]

1. e4 {[%clk 0:03:00]}  c6 {[%clk 0:03:00]} 2. Nf3 {[%clk 0:03:00]}  d5 {[%clk 0:03:00]} 3. d3 {[%clk 0:03:01]}  Bg4 {[%clk 0:03:00]} 4. h3 {[%clk 0:03:00]}  Bh5 {[%clk 0:03:00]} 5. Qe2 {[%clk 0:03:01]}  dxe4 {[%clk 0:02:55]} 6. dxe4 {[%clk 0:03:00]}  e5 {[%clk 0:02:55]} 7. g3 {[%clk 0:03:00]}  Nf6 {[%clk 0:02:48]} 8. Nbd2 {[%clk 0:03:00]}  Nbd7 {[%clk 0:02:45]} 9. Bg2 {[%clk 0:02:59]}  Bc5 {[%clk 0:02:44]} 10. O-O {[%clk 0:02:59]}  O-O {[%clk 0:02:44]} 11. Nb3 {[%clk 0:02:58]}  Bb6 {[%clk 0:02:42]} 12. a4 {[%clk 0:02:57]}  a5 {[%clk 0:02:40]} 13. Bd2 {[%clk 0:02:57]}  Qc7 {[%clk 0:02:35]} 14. Bc3 {[%clk 0:02:57]}  Rfe8 {[%clk 0:02:34]} 15. Rad1 {[%clk 0:02:56]}  Nc5 {[%clk 0:02:31]} 16. Nxc5 {[%clk 0:02:55]}  Bxc5 {[%clk 0:02:32]} 17. Kh1 {[%clk 0:02:47]}  Bg6 {[%clk 0:02:30]} 18. Nh4 {[%clk 0:02:44]}  Bb4 {[%clk 0:02:29]} 19. Bxb4 {[%clk 0:02:33]}  axb4 {[%clk 0:02:30]} 20. b3 {[%clk 0:02:32]}  Rad8 {[%clk 0:02:30]} 21. Qc4 {[%clk 0:02:32]}  Qb6 {[%clk 0:02:28]} 22. Kg1 {[%clk 0:02:23]}  Bh5 {[%clk 0:02:19]} 23. Bf3 {[%clk 0:02:22]}  Bg6 {[%clk 0:02:12]} 24. Kg2 {[%clk 0:02:19]}  Kf8 {[%clk 0:01:58]} 25. Rfe1 {[%clk 0:02:18]}  Ke7 {[%clk 0:01:49]} 26. Nxg6+ {[%clk 0:02:15]}  hxg6 {[%clk 0:01:49]} 27. h4 {[%clk 0:02:16]}  Kf8 {[%clk 0:01:40]} 28. Rh1 {[%clk 0:02:13]}  Rd4 {[%clk 0:01:32]} 29. Rxd4 {[%clk 0:02:11]}  Qxd4 {[%clk 0:01:33]} 30. Qxd4 {[%clk 0:01:57]}  exd4 {[%clk 0:01:34]} 31. Rd1 {[%clk 0:01:50]}  Rd8 {[%clk 0:01:33]} 32. a5 {[%clk 0:01:43]}  Ne8 {[%clk 0:01:31]} 33. Kf1 {[%clk 0:01:29]}  Nc7 {[%clk 0:01:31]} 34. Ke2 {[%clk 0:01:28]}  Ke7 {[%clk 0:01:24]} 35. Kd3 {[%clk 0:01:28]}  Nb5 {[%clk 0:01:03]} 36. Kc4 {[%clk 0:01:28]}  Na3+ {[%clk 0:01:03]} 37. Kd3 {[%clk 0:01:24]}  Ra8 {[%clk 0:01:02]} 38. Rd2 {[%clk 0:01:05]}  Nb5 {[%clk 0:00:42]} 39. Kc4 {[%clk 0:01:03]}  Rxa5 {[%clk 0:00:42]} 40. Kxb4 {[%clk 0:01:02]}  Ra2 {[%clk 0:00:42]} 41. Be2 {[%clk 0:00:56]}  Na3 {[%clk 0:00:38]} 42. Kc5 {[%clk 0:00:17]}  Nb1 {[%clk 0:00:37]} 43. Rd1 {[%clk 0:00:11]}  Nc3 {[%clk 0:00:36]} 44. Re1 {[%clk 0:00:08]}  Rxc2 {[%clk 0:00:34]} 45. Bc4 {[%clk 0:00:06]}  Rd2 {[%clk 0:00:25]} 46. Kb6 {[%clk 0:00:05]}  f6 {[%clk 0:00:20]} 47. Kxb7 {[%clk 0:00:05]}  Kd6 {[%clk 0:00:20]} 48. f4 {[%clk 0:00:06]}  c5 {[%clk 0:00:18]} 49. e5+ {[%clk 0:00:06]}  Ke7 {[%clk 0:00:18]} 50. Kc6 {[%clk 0:00:05]}  f5 {[%clk 0:00:14]} 51. Kxc5 {[%clk 0:00:05]}  Ne4+ {[%clk 0:00:14]} 52. Kd5 {[%clk 0:00:04]}  d3 {[%clk 0:00:10]} 53. Ra1 {[%clk 0:00:03]}  Rb2 {[%clk 0:00:05]} 54. Ra7+ {[%clk 0:00:04]}  Kd8 {[%clk 0:00:05]} 55. e6 {[%clk 0:00:03]}  d2 {[%clk 0:00:04]} 56. e7+ {[%clk 0:00:01]}  Ke8 {[%clk 0:00:04]} 0-1


[Site "https://www.chess.com"]

[Event "Titled Tuesday Blitz May 31 Late 2022"]
[White "Hess, Robert"]
[Black "Lomaia, Diana"]
[WhiteFideId "2022036"]
[BlackFideId "13612476"]
[WhiteElo "2557"]
[BlackElo "1744"]
[Result "0-1"]
[Round "02"]
[TimeControl "180+1"]
[Date "2022.06.01"]
[WhiteClock "0:00:10"]
[BlackClock "0:00:34"]

1. b3 {[%clk 0:03:00]}  Nf6 {[%clk 0:02:58]} 2. Bb2 {[%clk 0:03:01]}  g6 {[%clk 0:02:59]} 3. d3 {[%clk 0:03:01]}  Bg7 {[%clk 0:02:59]} 4. Nd2 {[%clk 0:03:02]}  b6 {[%clk 0:02:57]} 5. e3 {[%clk 0:02:59]}  Bb7 {[%clk 0:02:57]} 6. Ne2 {[%clk 0:03:00]}  O-O {[%clk 0:02:57]} 7. h3 {[%clk 0:03:00]}  c5 {[%clk 0:02:57]} 8. a3 {[%clk 0:03:01]}  Nc6 {[%clk 0:02:57]} 9. g4 {[%clk 0:03:01]}  Ne5 {[%clk 0:02:52]} 10. Rg1 {[%clk 0:02:59]}  Nf3+ {[%clk 0:02:51]} 11. Nxf3 {[%clk 0:03:00]}  Bxf3 {[%clk 0:02:51]} 12. Bg2 {[%clk 0:02:53]}  Bxg2 {[%clk 0:02:50]} 13. Rxg2 {[%clk 0:02:53]}  d5 {[%clk 0:02:49]} 14. g5 {[%clk 0:02:46]}  Nh5 {[%clk 0:02:47]} 15. Bxg7 {[%clk 0:02:47]}  Nxg7 {[%clk 0:02:47]} 16. Nf4 {[%clk 0:02:37]}  e5 {[%clk 0:02:40]} 17. Ne2 {[%clk 0:02:37]}  Nf5 {[%clk 0:02:38]} 18. Rg4 {[%clk 0:02:31]}  f6 {[%clk 0:02:32]} 19. h4 {[%clk 0:02:18]}  a5 {[%clk 0:02:29]} 20. Nc3 {[%clk 0:02:17]}  d4 {[%clk 0:02:26]} 21. exd4 {[%clk 0:02:08]}  Nxd4 {[%clk 0:02:22]} 22. Rg3 {[%clk 0:01:59]}  f5 {[%clk 0:02:21]} 23. a4 {[%clk 0:01:42]}  Qd7 {[%clk 0:02:08]} 24. Kd2 {[%clk 0:01:21]}  e4 {[%clk 0:01:51]} 25. Kc1 {[%clk 0:01:21]}  f4 {[%clk 0:01:44]} 26. Rg1 {[%clk 0:01:09]}  exd3 {[%clk 0:01:43]} 27. Qxd3 {[%clk 0:01:07]}  Nxb3+ {[%clk 0:01:42]} 28. Kb2 {[%clk 0:00:59]}  Qxd3 {[%clk 0:01:42]} 29. cxd3 {[%clk 0:01:00]}  Nxa1 {[%clk 0:01:43]} 30. Rxa1 {[%clk 0:00:58]}  Rad8 {[%clk 0:01:41]} 31. Kc2 {[%clk 0:00:58]}  Rfe8 {[%clk 0:01:36]} 32. Ne4 {[%clk 0:00:55]}  Kf7 {[%clk 0:01:36]} 33. f3 {[%clk 0:00:49]}  Rd4 {[%clk 0:01:34]} 34. Rb1 {[%clk 0:00:49]}  Rb4 {[%clk 0:01:29]} 35. Rh1 {[%clk 0:00:46]}  Rd8 {[%clk 0:01:24]} 36. h5 {[%clk 0:00:44]}  Rxa4 {[%clk 0:01:24]} 37. hxg6+ {[%clk 0:00:45]}  hxg6 {[%clk 0:01:19]} 38. Rh7+ {[%clk 0:00:45]}  Ke6 {[%clk 0:01:19]} 39. Rg7 {[%clk 0:00:45]}  Ra2+ {[%clk 0:01:17]} 40. Kb3 {[%clk 0:00:42]}  Rg2 {[%clk 0:01:09]} 41. Rxg6+ {[%clk 0:00:42]}  Ke5 {[%clk 0:01:09]} 42. Kc3 {[%clk 0:00:36]}  b5 {[%clk 0:01:05]} 43. Nxc5 {[%clk 0:00:37]}  b4+ {[%clk 0:01:04]} 44. Kb3 {[%clk 0:00:32]}  Rd5 {[%clk 0:01:01]} 45. Rc6 {[%clk 0:00:19]}  Rxg5 {[%clk 0:00:51]} 46. Kc4 {[%clk 0:00:19]}  Rd4+ {[%clk 0:00:49]} 47. Kb5 {[%clk 0:00:20]}  b3 {[%clk 0:00:40]} 48. Kxa5 {[%clk 0:00:12]}  b2 {[%clk 0:00:38]} 49. Rb6 {[%clk 0:00:12]}  Rd5 {[%clk 0:00:36]} 50. Rxb2 {[%clk 0:00:05]}  Rxc5+ {[%clk 0:00:36]} 51. Kb4 {[%clk 0:00:05]}  Kd4 {[%clk 0:00:34]} 52. Re2 {[%clk 0:00:06]}  Rb5+ {[%clk 0:00:34]} 53. Ka3 {[%clk 0:00:07]}  Ra5+ {[%clk 0:00:34]} 54. Kb2 {[%clk 0:00:07]}  Rgb5+ {[%clk 0:00:34]} 55. Kc1 {[%clk 0:00:08]}  Ra1+ {[%clk 0:00:35]} 56. Kd2 {[%clk 0:00:09]}  Ra2+ {[%clk 0:00:35]} 57. Ke1 {[%clk 0:00:09]}  Rxe2+ {[%clk 0:00:34]} 58. Kxe2 {[%clk 0:00:10]} 0-1


[Site "https://www.chess.com"]

[Event "Titled Tuesday Blitz May 31 Late 2022"]
[White "Holt, Conrad"]
[Black "Suder, Jakub"]
[WhiteFideId "2034387"]
[BlackFideId "1195310"]
[WhiteElo "2586"]
[BlackElo "2058"]
[Result "0-1"]
[Round "02"]
[TimeControl "180+1"]
[Date "2022.05.31"]
[WhiteClock "0:00:01"]
[BlackClock "0:00:05"]

1. d4 {[%clk 0:03:00]}  d5 {[%clk 0:02:53]} 2. c4 {[%clk 0:02:59]}  e6 {[%clk 0:02:53]} 3. Nc3 {[%clk 0:03:00]}  a6 {[%clk 0:02:53]} 4. cxd5 {[%clk 0:02:59]}  exd5 {[%clk 0:02:54]} 5. Bf4 {[%clk 0:02:59]}  c6 {[%clk 0:02:54]} 6. e3 {[%clk 0:02:59]}  Bd6 {[%clk 0:02:54]} 7. Bxd6 {[%clk 0:02:58]}  Qxd6 {[%clk 0:02:55]} 8. Bd3 {[%clk 0:02:56]}  Nf6 {[%clk 0:02:56]} 9. Qc2 {[%clk 0:02:53]}  O-O {[%clk 0:02:55]} 10. Nf3 {[%clk 0:02:53]}  Nbd7 {[%clk 0:02:54]} 11. O-O {[%clk 0:02:53]}  Re8 {[%clk 0:02:54]} 12. Rac1 {[%clk 0:02:45]}  Nf8 {[%clk 0:02:54]} 13. Na4 {[%clk 0:02:41]}  Ne4 {[%clk 0:02:37]} 14. Nb6 {[%clk 0:02:21]}  Rb8 {[%clk 0:02:35]} 15. Nxc8 {[%clk 0:02:21]}  Rbxc8 {[%clk 0:02:32]} 16. Ne5 {[%clk 0:02:12]}  f6 {[%clk 0:02:24]} 17. Nc4 {[%clk 0:02:04]}  Qc7 {[%clk 0:02:14]} 18. Nd2 {[%clk 0:01:54]}  f5 {[%clk 0:02:04]} 19. b4 {[%clk 0:01:47]}  Re6 {[%clk 0:01:57]} 20. Nb3 {[%clk 0:01:18]}  Rh6 {[%clk 0:01:53]} 21. g3 {[%clk 0:01:17]}  Ne6 {[%clk 0:01:41]} 22. Kg2 {[%clk 0:01:09]}  Qf7 {[%clk 0:01:34]} 23. Qe2 {[%clk 0:01:05]}  g5 {[%clk 0:01:19]} 24. h3 {[%clk 0:00:54]}  Re8 {[%clk 0:00:55]} 25. Bxe4 {[%clk 0:00:24]}  fxe4 {[%clk 0:00:47]} 26. a4 {[%clk 0:00:18]}  Rg6 {[%clk 0:00:35]} 27. b5 {[%clk 0:00:17]}  axb5 {[%clk 0:00:36]} 28. axb5 {[%clk 0:00:17]}  g4 {[%clk 0:00:36]} 29. hxg4 {[%clk 0:00:14]}  Ng5 {[%clk 0:00:36]} 30. bxc6 {[%clk 0:00:14]}  bxc6 {[%clk 0:00:30]} 31. Nd2 {[%clk 0:00:10]}  Rf8 {[%clk 0:00:29]} 32. Rh1 {[%clk 0:00:08]}  Rf6 {[%clk 0:00:25]} 33. Rcf1 {[%clk 0:00:08]}  Nf3 {[%clk 0:00:24]} 34. Rh5 {[%clk 0:00:08]}  Qg6 {[%clk 0:00:21]} 35. Rhh1 {[%clk 0:00:02]}  Qxg4 {[%clk 0:00:20]} 36. Qd1 {[%clk 0:00:03]}  h5 {[%clk 0:00:18]} 37. Nxf3 {[%clk 0:00:03]}  exf3+ {[%clk 0:00:18]} 38. Kg1 {[%clk 0:00:03]}  Rg6 {[%clk 0:00:16]} 39. Qc2 {[%clk 0:00:03]}  h4 {[%clk 0:00:14]} 40. Rxh4 {[%clk 0:00:02]}  Qg5 {[%clk 0:00:13]} 41. Rh2 {[%clk 0:00:02]}  Rh6 {[%clk 0:00:10]} 42. Rc1 {[%clk 0:00:01]}  Rxh2 {[%clk 0:00:10]} 43. Kxh2 {[%clk 0:00:02]}  Rf6 {[%clk 0:00:06]} 44. Kg1 {[%clk 0:00:01]}  Qh5 {[%clk 0:00:05]} 0-1


[Site "https://www.chess.com"]

[Event "Titled Tuesday Blitz May 31 Late 2022"]
[White "Ibarra Jerez, Jose Carlos"]
[Black "Ambartsumova, Karina"]
[WhiteFideId "2226332"]
[BlackFideId "4166299"]
[WhiteElo "2626"]
[BlackElo "2262"]
[Result "1-0"]
[Round "02"]
[TimeControl "180+1"]
[Date "2022.05.31"]
[WhiteClock "0:00:08"]
[BlackClock "0:00:04"]

1. Nf3 {[%clk 0:03:00]}  Nf6 {[%clk 0:02:59]} 2. g3 {[%clk 0:03:01]}  g6 {[%clk 0:03:00]} 3. b3 {[%clk 0:03:01]}  Bg7 {[%clk 0:03:00]} 4. Bb2 {[%clk 0:03:01]}  O-O {[%clk 0:03:00]} 5. Bg2 {[%clk 0:03:01]}  c5 {[%clk 0:03:00]} 6. c4 {[%clk 0:03:01]}  Nc6 {[%clk 0:02:58]} 7. O-O {[%clk 0:03:00]}  b6 {[%clk 0:02:57]} 8. d4 {[%clk 0:02:55]}  cxd4 {[%clk 0:02:58]} 9. Nxd4 {[%clk 0:02:55]}  Bb7 {[%clk 0:02:58]} 10. Nc3 {[%clk 0:02:53]}  Qc7 {[%clk 0:02:48]} 11. Ndb5 {[%clk 0:02:41]}  Qc8 {[%clk 0:02:36]} 12. Nd5 {[%clk 0:02:31]}  Ne8 {[%clk 0:02:18]} 13. Bxg7 {[%clk 0:02:28]}  Nxg7 {[%clk 0:02:16]} 14. Nxe7+ {[%clk 0:02:07]}  Nxe7 {[%clk 0:02:12]} 15. Nd6 {[%clk 0:02:08]}  Qc7 {[%clk 0:02:03]} 16. Bxb7 {[%clk 0:02:06]}  Rad8 {[%clk 0:01:56]} 17. Bd5 {[%clk 0:01:55]}  Ne6 {[%clk 0:01:43]} 18. Nb5 {[%clk 0:01:52]}  Qe5 {[%clk 0:01:37]} 19. Nxa7 {[%clk 0:01:34]}  Nd4 {[%clk 0:01:37]} 20. e3 {[%clk 0:01:29]}  Ne6 {[%clk 0:01:25]} 21. Nb5 {[%clk 0:01:26]}  Nf5 {[%clk 0:01:16]} 22. Qd2 {[%clk 0:01:15]}  h5 {[%clk 0:01:15]} 23. Rae1 {[%clk 0:01:11]}  h4 {[%clk 0:01:09]} 24. f4 {[%clk 0:01:10]}  Qg7 {[%clk 0:01:06]} 25. e4 {[%clk 0:00:50]}  Ne7 {[%clk 0:01:05]} 26. f5 {[%clk 0:00:36]}  Nxd5 {[%clk 0:01:05]} 27. cxd5 {[%clk 0:00:34]}  Nc5 {[%clk 0:01:04]} 28. f6 {[%clk 0:00:32]}  Qh7 {[%clk 0:01:04]} 29. b4 {[%clk 0:00:29]}  Nb7 {[%clk 0:01:00]} 30. Rf4 {[%clk 0:00:25]}  hxg3 {[%clk 0:00:57]} 31. hxg3 {[%clk 0:00:26]}  Qh3 {[%clk 0:00:57]} 32. Qg2 {[%clk 0:00:26]}  Qxg2+ {[%clk 0:00:53]} 33. Kxg2 {[%clk 0:00:26]}  Rc8 {[%clk 0:00:49]} 34. Rh4 {[%clk 0:00:23]}  Rc2+ {[%clk 0:00:49]} 35. Kf3 {[%clk 0:00:23]}  g5 {[%clk 0:00:24]} 36. Rh5 {[%clk 0:00:23]}  g4+ {[%clk 0:00:21]} 37. Ke3 {[%clk 0:00:19]}  Rg2 {[%clk 0:00:18]} 38. Kf4 {[%clk 0:00:18]}  Rf2+ {[%clk 0:00:18]} 39. Kg5 {[%clk 0:00:08]}  Re8 {[%clk 0:00:18]} 40. e5 {[%clk 0:00:09]}  Rd2 {[%clk 0:00:08]} 41. Nc7 {[%clk 0:00:08]}  Rc8 {[%clk 0:00:04]} 42. Reh1 {[%clk 0:00:08]} 1-0


[Site "https://www.chess.com"]